lending/lending_fUSD_20250920
["ID","MTS","AMOUNT","RATE_DAILY","PERIOD"]
[386576263,1758406246269,-1486.27,0.00024657,3]
[386576266,1758406246280,-1702.86,0.00024657,2]
[386576268,1758406246289,-400.0,0.00024657,3]
[386576270,1758406246299,-3939.11059659,0.00024657,3]
[386576272,1758406246308,-1486.43852882,0.00024657,3]
[386576274,1758406246317,-400.0,0.00024657,3]
[386576276,1758406246326,-1702.86,0.00024657,2]
[386576278,1758406246337,-504.65020153,0.00024657,3]
[386576280,1758406246346,-714.04,0.00024657,3]
[386576281,1758406246355,-428.21,0.00024657,3]
[386576284,1758406246364,-1702.86,0.00024657,2]
[386576286,1758406246375,-1702.86,0.00024657,2]
[386576288,1758406246385,-400.0,0.00024657,3]
[386576290,1758406246394,-400.0,0.00024657,3]
[386576292,1758406246403,-151.0,0.00024657,7]
[386576294,1758406246413,-400.0,0.00024657,3]
[386576296,1758406246422,-151.0,0.00024657,7]
[386576298,1758406246431,-400.0,0.00024657,3]
[386576300,1758406246440,-811.64,0.00024657,3]
[386576302,1758406246450,-151.0,0.00024657,7]
[386576304,1758406246459,-151.0,0.00024657,7]
[386576306,1758406246468,-400.0,0.00024657,3]
[386576308,1758406246477,-423.57152927,0.00024657,3]
[386576310,1758406246487,-400.0,0.00024657,3]
[386576312,1758406246496,-423.03,0.00024657,3]
[386576314,1758406246505,-482.98470081,0.00024657,3]
[386576316,1758406246515,-673.21,0.00024657,3]
[386576318,1758406246523,-400.0,0.00024657,3]
[386576320,1758406246533,-400.0,0.00024657,3]
[386576322,1758406246542,-400.0,0.00024657,3]
[386576324,1758406246553,-400.0,0.00024657,3]
[386576326,1758406246563,-400.0,0.00024657,3]
[386576328,1758406246572,-1927.31,0.00024657,3]
[386576330,1758406246582,-400.0,0.00024657,3]
[386576332,1758406246591,-872.83,0.00024657,3]
[386576334,1758406246600,-592.58,0.00024657,3]
[386576336,1758406246609,-400.0,0.00024657,3]
[386576338,1758406246619,-400.0,0.00024657,3]
[386576340,1758406246628,-400.0,0.00024657,3]
[386576342,1758406246638,-400.0,0.00024657,3]
[386576344,1758406246647,-1432.1,0.00024657,3]
[386576346,1758406246657,-400.0,0.00024657,3]
[386576348,1758406246666,-860.8,0.00024657,3]
[386576350,1758406246675,-400.0,0.00024657,3]
[386576352,1758406246685,-819.91,0.00024657,3]
[386576354,1758406246694,-400.0,0.00024657,3]
[386576356,1758406246703,-771.78,0.00024657,3]
[386576358,1758406246712,-400.0,0.00024657,3]
[386576360,1758406246722,-400.0,0.00024657,3]
[386576362,1758406246731,-400.0,0.00024657,3]
[386576364,1758406246740,-400.0,0.00024657,3]
[386576365,1758406246749,-1134.54,0.00024657,3]
[386576368,1758406246761,-400.0,0.00024657,3]
[386576370,1758406246770,-400.0,0.00024657,3]
[386576372,1758406246780,-400.0,0.00024657,3]
[386576374,1758406246789,-400.0,0.00024657,3]
[386576376,1758406246800,-400.0,0.00024657,3]
[386576378,1758406246809,-400.0,0.00024657,3]
[386576380,1758406246819,-428.32,0.00024657,3]
[386576382,1758406246828,-1202.06,0.00024657,3]
[386576384,1758406246837,-519.21,0.00024657,3]
[386576386,1758406246847,-400.0,0.00024657,3]
[386576388,1758406246856,-400.0,0.00024657,3]
[386576390,1758406246865,-443.24489428,0.00024657,3]
[386576392,1758406246874,-1266.29,0.00024657,3]
[386576394,1758406246883,-502.88,0.00024657,3]
[386576395,1758406246893,-400.0,0.00024657,3]
[386576397,1758406246902,-1376.85,0.00024657,3]
[386576399,1758406246912,-400.0,0.00024657,3]
[386576401,1758406246921,-400.0,0.00024657,3]
[386576403,1758406246931,-400.0,0.00024657,3]
[386576406,1758406246940,-1111.38,0.00024657,3]
[386576407,1758406246950,-400.0,0.00024657,3]
[386576410,1758406246960,-400.0,0.00024657,3]
[386576411,1758406246970,-400.0,0.00024657,3]
[386576413,1758406246979,-400.0,0.00024657,3]
[386576415,1758406246988,-400.0,0.00024657,3]
[386576417,1758406246998,-485.27,0.00024657,3]
[386576420,1758406247007,-400.0,0.00024657,2]
[386576422,1758406247017,-400.0,0.00024657,3]
[386576423,1758406247026,-634.4,0.00024657,3]
[386576425,1758406247036,-400.0,0.00024657,3]
[386576427,1758406247045,-400.0,0.00024657,3]
[386576430,1758406247057,-400.0,0.00024657,3]
[386576432,1758406247067,-400.0,0.00024657,3]
[386576434,1758406247076,-414.41,0.00024657,3]
[386576436,1758406247086,-1575.39,0.00024657,3]
[386576438,1758406247096,-968.09,0.00024657,3]
[386576440,1758406247105,-400.0,0.00024657,3]
[386576442,1758406247115,-400.0,0.00024657,3]
[386576444,1758406247124,-400.0,0.00024657,3]
[386576446,1758406247134,-400.0,0.00024657,3]
[386576448,1758406247143,-1939.06,0.00024657,3]
[386576450,1758406247153,-3235.29,0.00024657,3]
[386576452,1758406247163,-400.0,0.00024657,3]
[386576454,1758406247173,-400.0,0.00024657,3]
[386576456,1758406247182,-400.0,0.00024657,3]
[386576458,1758406247191,-400.0,0.00024657,3]
[386576460,1758406247200,-400.0,0.00024657,3]
[386576462,1758406247210,-1511.83,0.00024657,3]
[386576464,1758406247219,-400.0,0.00024657,3]
[386576465,1758406247228,-400.0,0.00024657,3]
[386576468,1758406247238,-400.0,0.00024657,3]
[386576469,1758406247247,-400.0,0.00024657,3]
[386576471,1758406247256,-400.0,0.00024657,3]
[386576474,1758406247266,-400.0,0.00024657,3]
[386576475,1758406247278,-1311.6,0.00024657,3]
[386576477,1758406247287,-400.0,0.00024657,3]
[386576479,1758406247296,-151.0,0.00024657,7]
[386576482,1758406247306,-400.0,0.00024657,3]
[386576484,1758406247318,-446.27,0.00024657,3]
[386576486,1758406247327,-400.0,0.00024657,3]
[386576488,1758406247336,-400.0,0.00024657,3]
[386576489,1758406247346,-400.0,0.00024657,3]
[386576491,1758406247356,-400.0,0.00024657,3]
[386576494,1758406247366,-400.0,0.00024657,3]
[386576495,1758406247376,-400.0,0.00024657,3]
[386576497,1758406247385,-400.0,0.00024657,3]
[386576500,1758406247397,-421.52,0.00024657,3]
[386576501,1758406247407,-1359.13,0.00024657,3]
[386576504,1758406247417,-400.0,0.00024657,3]
[386576505,1758406247427,-400.0,0.00024657,3]
[386576507,1758406247436,-1121.23,0.00024657,3]
[386576509,1758406247447,-400.0,0.00024657,3]
[386576511,1758406247457,-1225.4,0.00024657,3]
[386576513,1758406247467,-1233.85,0.00024657,3]
[386576516,1758406247477,-400.0,0.00024657,3]
[386576517,1758406247486,-400.0,0.00024657,3]
[386576519,1758406247495,-400.0,0.00024657,3]
[386576521,1758406247505,-400.0,0.00024657,3]
[386576523,1758406247514,-400.0,0.00024657,3]
[386576525,1758406247523,-400.0,0.00024657,3]
[386576527,1758406247533,-400.0,0.00024657,3]
[386576530,1758406247542,-400.0,0.00024657,3]
[386576532,1758406247552,-786.0,0.00024657,3]
[386576534,1758406247561,-400.0,0.00024657,3]
[386576536,1758406247570,-400.0,0.00024657,3]
[386576537,1758406247579,-400.0,0.00024657,3]
[386576539,1758406247589,-1184.79,0.00024657,3]
[386576541,1758406247598,-1177.49,0.00024657,3]
[386576543,1758406247610,-1282.42,0.00024657,3]
[386576545,1758406247620,-400.0,0.00024657,3]
[386576548,1758406247630,-400.0,0.00024657,3]
[386576549,1758406247641,-400.0,0.00024657,3]
[386576551,1758406247651,-400.0,0.00024657,3]
[386576553,1758406247660,-1316.47,0.00024657,3]
[386576556,1758406247671,-400.0,0.00024657,3]
[386576558,1758406247680,-400.0,0.00024657,3]
[386576560,1758406247690,-400.0,0.00024657,3]
[386576562,1758406247699,-400.0,0.00024657,3]
[386576563,1758406247709,-1283.45,0.00024657,3]
[386576565,1758406247718,-400.0,0.00024657,3]
[386576568,1758406247728,-460.42,0.00024657,3]
[386576569,1758406247737,-400.0,0.00024657,3]
[386576571,1758406247747,-400.0,0.00024657,3]
[386576574,1758406247757,-543.13145276,0.00024657,3]
[386576576,1758406247766,-400.0,0.00024657,3]
[386576578,1758406247775,-400.0,0.00024657,3]
[386576580,1758406247785,-1545.29,0.00024657,3]
[386576582,1758406247794,-400.0,0.00024657,3]
[386576584,1758406247803,-400.0,0.00024657,3]
[386576586,1758406247812,-401.72185134,0.00024657,3]
[386576588,1758406247822,-400.0,0.00024657,3]
[386576590,1758406247831,-400.0,0.00024657,3]
[386576591,1758406247840,-1189.24,0.00024657,3]
[386576594,1758406247850,-400.0,0.00024657,3]
[386576596,1758406247859,-549.22,0.00024657,3]
[386576598,1758406247868,-1497.09,0.00024657,3]
[386576600,1758406247878,-1029.73,0.00024657,3]
[386576602,1758406247888,-549.22,0.00024657,3]
[386576604,1758406247898,-549.22,0.00024657,3]
[386576606,1758406247907,-549.22,0.00024657,3]
[386576608,1758406247916,-657.25,0.00024657,3]
[386576610,1758406247925,-549.22,0.00024657,3]
[386576612,1758406247934,-549.22,0.00024657,3]
[386576613,1758406247943,-1017.86,0.00024657,3]
[386576614,1758406247952,-549.22,0.00024657,3]
[386576615,1758406247961,-151.0,0.00024657,7]
[386576616,1758406247970,-549.22,0.00024657,3]
[386576617,1758406247980,-151.0,0.00024657,7]
[386576618,1758406247989,-400.0,0.00024657,3]
[386576619,1758406247998,-688.16,0.00024657,3]
[386576620,1758406248007,-400.0,0.00024657,3]
[386576621,1758406248016,-151.0,0.00024657,7]
[386576623,1758406248026,-400.0,0.00024657,3]
[386576625,1758406248036,-400.0,0.00024657,3]
[386576627,1758406248045,-400.0,0.00024657,3]
[386576629,1758406248055,-400.0,0.00024657,3]
[386576631,1758406248064,-400.0,0.00024657,3]
[386576633,1758406248074,-553.16,0.00024657,3]
[386576636,1758406248084,-400.0,0.00024657,3]
[386576638,1758406248094,-400.0,0.00024657,3]
[386576640,1758406248103,-400.0,0.00024657,3]
[386576642,1758406248113,-400.0,0.00024657,3]
[386576670,1758406248380,-400.0,0.00024657,3]
[386576673,1758406248391,-400.0,0.00024657,3]
[386576675,1758406248400,-409.72,0.00024657,3]
[386576677,1758406248410,-400.0,0.00024657,3]
[386576679,1758406248420,-514.91,0.00024657,3]
[386576681,1758406248430,-566.54,0.00024657,3]
[386576683,1758406248439,-400.0,0.00024657,3]
[386576684,1758406248448,-400.0,0.00024657,3]
[386576686,1758406248457,-400.0,0.00024657,3]
[386576688,1758406248467,-400.56790727,0.00024657,3]
[386576690,1758406248476,-400.0,0.00024657,3]
[386576692,1758406248486,-943.72,0.00024657,3]
[386576695,1758406248495,-2831.78685799,0.00024657,3]
[386576697,1758406248504,-988.31,0.00024657,3]
[386576699,1758406248514,-1408.52,0.00024657,3]
[386576701,1758406248523,-400.0,0.00024657,3]
[386576703,1758406248532,-400.0,0.00024657,3]
[386576705,1758406248541,-400.0,0.00024657,3]
[386576707,1758406248551,-1097.11,0.00024657,3]
[386576709,1758406248560,-400.0,0.00024657,3]
[386576711,1758406248569,-548.53,0.00024657,3]
[386576713,1758406248578,-400.0,0.00024657,3]
[386576714,1758406248587,-400.0,0.00024657,3]
[386576717,1758406248597,-400.0,0.00024657,3]
[386576718,1758406248607,-463.89,0.00024657,3]
[386576721,1758406248616,-400.0,0.00024657,3]
[386576723,1758406248626,-400.0,0.00024657,3]
[386576725,1758406248636,-400.0,0.00024657,3]
[386576726,1758406248645,-464.9,0.00024657,3]
[386576728,1758406248654,-1162.53,0.00024657,3]
[386576730,1758406248664,-400.0,0.00024657,3]
[386576732,1758406248674,-400.0,0.00024657,3]
[386576735,1758406248684,-400.0,0.00024657,3]
[386576737,1758406248694,-430.77,0.00024657,3]
[386576738,1758406248704,-1221.78,0.00024657,3]
[386576741,1758406248713,-400.0,0.00024657,3]
[386576742,1758406248723,-400.0,0.00024657,3]
[386576744,1758406248733,-983.54,0.00024657,3]
[386576747,1758406248743,-400.0,0.00024657,3]
[386576749,1758406248753,-400.0,0.00024657,3]
[386576751,1758406248763,-634.1,0.00024657,3]
[386576752,1758406248773,-400.0,0.00024657,3]
[386576755,1758406248783,-829.07,0.00024657,3]
[386576756,1758406248792,-400.0,0.00024657,3]
[386576758,1758406248803,-400.0,0.00024657,3]
[386576761,1758406248812,-400.0,0.00024657,3]
[386576762,1758406248821,-789.17,0.00024657,3]
[386576765,1758406248831,-400.0,0.00024657,3]
[386576767,1758406248839,-151.0,0.00024657,7]
[386576769,1758406248849,-151.0,0.00024657,7]
[386576771,1758406248858,-1046.24,0.00024657,3]
[386576773,1758406248868,-151.0,0.00024657,7]
[386576775,1758406248878,-400.0,0.00024657,3]
[386576777,1758406248887,-400.0,0.00024657,3]
[386576779,1758406248898,-1003.25,0.00024657,3]
[386576781,1758406248908,-400.0,0.00024657,3]
[386576783,1758406248917,-483.17953318,0.00024657,3]
[386576785,1758406248926,-449.94,0.00024657,3]
[386576787,1758406248935,-400.0,0.00024657,3]
[386576789,1758406248944,-400.0,0.00024657,3]
[386576791,1758406248953,-1318.77,0.00024657,3]
[386576793,1758406248962,-400.0,0.00024657,3]
[386576795,1758406248971,-1398.78,0.00024657,3]
[386576797,1758406248980,-400.0,0.00024657,3]
[386576799,1758406248990,-909.36,0.00024657,3]
[386576801,1758406248999,-1666.03,0.00024657,3]
[386576803,1758406249009,-400.0,0.00024657,3]
[386576805,1758406249019,-400.0,0.00024657,3]
[386576807,1758406249028,-400.0,0.00024657,3]
[386576809,1758406249038,-528.82,0.00024657,3]
[386576811,1758406249048,-400.0,0.00024657,3]
[386576813,1758406249060,-400.0,0.00024657,3]
[386576815,1758406249069,-400.0,0.00024657,3]
[386576817,1758406249079,-400.0,0.00024657,3]
[386576819,1758406249089,-400.0,0.00024657,3]
[386576821,1758406249098,-400.0,0.00024657,3]
[386576823,1758406249107,-738.34,0.00024657,3]
[386576825,1758406249116,-1088.77,0.00024657,3]
[386576827,1758406249125,-400.0,0.00024657,3]
[386576829,1758406249134,-868.48,0.00024657,3]
[386576831,1758406249144,-400.0,0.00024657,3]
[386576833,1758406249153,-400.0,0.00024657,3]
[386576835,1758406249162,-400.0,0.00024657,3]
[386576837,1758406249171,-400.0,0.00024657,3]
[386576839,1758406249180,-400.0,0.00024657,3]
[386576841,1758406249190,-400.0,0.00024657,3]
[386576843,1758406249199,-400.0,0.00024657,3]
[386576845,1758406249208,-400.0,0.00024657,3]
[386576847,1758406249217,-400.0,0.00024657,3]
[386576849,1758406249226,-400.0,0.00024657,3]
[386576851,1758406249235,-400.0,0.00024657,3]
[386576853,1758406249245,-519.06,0.00024657,3]
[386576855,1758406249254,-1069.52,0.00024657,3]
[386576857,1758406249262,-400.0,0.00024657,3]
[386576859,1758406249274,-400.0,0.00024657,3]
[386576861,1758406249284,-400.0,0.00024657,3]
[386576863,1758406249293,-660.79,0.00024657,3]
[386576865,1758406249302,-1515.75,0.00024657,3]
[386576867,1758406249311,-790.05,0.00024657,3]
[386576869,1758406249322,-151.0,0.00024657,7]
[386576871,1758406249331,-400.0,0.00024657,3]
[386576873,1758406249340,-151.0,0.00024657,7]
[386576875,1758406249351,-400.0,0.00024657,3]
[386576877,1758406249360,-412.0,0.00024657,3]
[386576879,1758406249369,-461.21,0.00024657,3]
[386576881,1758406249379,-583.01,0.00024657,3]
[386576883,1758406249388,-400.0,0.00024657,3]
[386576885,1758406249397,-400.0,0.00024657,3]
[386576887,1758406249407,-400.0,0.00024657,3]
[386576889,1758406249416,-2247.64,0.00024657,3]
[386576891,1758406249425,-401.34,0.00024657,3]
[386576893,1758406249434,-400.0,0.00024657,3]
[386576895,1758406249444,-400.0,0.00024657,3]
[386576897,1758406249453,-400.0,0.00024657,3]
[386576899,1758406249462,-400.0,0.00024657,3]
[386576901,1758406249472,-976.44,0.00024657,3]
[386576903,1758406249482,-400.0,0.00024657,3]
[386576905,1758406249491,-479.5,0.00024657,3]
[386576906,1758406249500,-400.0,0.00024657,3]
[386576909,1758406249510,-400.0,0.00024657,3]
[386576911,1758406249519,-526.7,0.00024657,3]
[386576913,1758406249528,-400.0,0.00024657,3]
[386576915,1758406249538,-984.8,0.00024657,3]
[386576916,1758406249547,-400.0,0.00024657,3]
[386576919,1758406249557,-400.0,0.00024657,3]
[386576921,1758406249566,-400.0,0.00024657,3]
[386576923,1758406249575,-800.76,0.00024657,3]
[386576924,1758406249584,-400.0,0.00024657,3]
[386576926,1758406249593,-591.15,0.00024657,3]
[386576928,1758406249604,-1318.14,0.00024657,3]
[386576931,1758406249613,-400.0,0.00024657,3]
[386576933,1758406249623,-400.0,0.00024657,3]
[386576935,1758406249633,-400.0,0.00024657,3]
[386576937,1758406249642,-400.0,0.00024657,3]
[386576939,1758406249651,-400.0,0.00024657,3]
[386576941,1758406249660,-400.0,0.00024657,3]
[386576943,1758406249669,-407.44266759,0.00024657,3]
[386576945,1758406249679,-400.0,0.00024657,3]
[386576947,1758406249688,-400.0,0.00024657,3]
[386576949,1758406249697,-400.0,0.00024657,3]
[386576950,1758406249706,-659.0,0.00024657,3]
[386576951,1758406249715,-400.0,0.00024657,3]
[386576952,1758406249725,-400.0,0.00024657,3]
[386576953,1758406249734,-400.0,0.00024657,3]
[386576954,1758406249743,-1069.81,0.00024657,3]
[386576955,1758406249753,-400.0,0.00024657,3]
[386576956,1758406249762,-490.36,0.00024657,3]
[386576957,1758406249772,-151.0,0.00024657,7]
[386576959,1758406249782,-1015.14,0.00024657,3]
[386576961,1758406249792,-400.0,0.00024657,3]
[386576963,1758406249802,-1280.9,0.00024657,3]
[386576965,1758406249811,-1178.16,0.00024657,3]
[386576967,1758406249820,-400.0,0.00024657,3]
[386576969,1758406249830,-400.0,0.00024657,3]
[386576971,1758406249839,-500.0,0.00024657,3]
[386576973,1758406249848,-500.0,0.00024657,3]
[386576975,1758406249858,-500.0,0.00024657,3]
[386576977,1758406249867,-400.0,0.00024657,3]
[386576979,1758406249877,-400.0,0.00024657,3]
[386576981,1758406249888,-500.0,0.00024657,3]
[386576983,1758406249897,-500.0,0.00024657,3]
[386576985,1758406249906,-400.0,0.00024657,3]
[386576987,1758406249915,-151.0,0.00024657,7]
[386576989,1758406249925,-500.0,0.00024657,3]
[386576991,1758406249934,-151.0,0.00024657,7]
[386576993,1758406249943,-500.0,0.00024657,3]
[386576995,1758406249952,-400.0,0.00024657,3]
[386576997,1758406249961,-151.0,0.00024657,7]
[386576999,1758406249970,-500.0,0.00024657,3]
[386577001,1758406249980,-400.0,0.00024657,3]
[386577003,1758406249989,-500.0,0.00024657,3]
[386577005,1758406249998,-151.0,0.00024657,7]
[386577007,1758406250007,-613.6,0.00024657,3]
[386577009,1758406250017,-151.0,0.00024657,7]
[386577011,1758406250026,-1223.49,0.00024657,3]
[386577013,1758406250036,-739.27,0.00024657,3]
[386577015,1758406250045,-151.0,0.00024657,7]
[386577017,1758406250054,-739.27,0.00024657,3]
[386577019,1758406250064,-400.0,0.00024657,3]
[386577021,1758406250073,-151.0,0.00024657,7]
[386577023,1758406250082,-436.79,0.00024657,3]
[386577025,1758406250093,-739.27,0.00024657,3]
[386577027,1758406250103,-183.099104,0.00024657,7]
[386577029,1758406250112,-739.27,0.00024657,3]
[386577031,1758406250121,-966.53,0.00024657,3]
[386577033,1758406250130,-739.27,0.00024657,3]
[386577035,1758406250141,-739.27,0.00024657,3]
[386577037,1758406250150,-1853.07,0.00024657,3]
[386577039,1758406250159,-739.27,0.00024657,3]
[386577041,1758406250170,-739.27,0.00024657,3]
[386577043,1758406250179,-739.27,0.00024657,3]
[386577045,1758406250189,-739.27,0.00024657,3]
[386577047,1758406250198,-739.27,0.00024657,3]
[386577049,1758406250207,-739.27,0.00024657,3]
[386577051,1758406250216,-739.27,0.00024657,3]
[386577053,1758406250225,-400.0,0.00024657,3]
[386577055,1758406250235,-830.36,0.00024657,3]
[386577057,1758406250244,-400.0,0.00024657,3]
[386577059,1758406250253,-739.27,0.00024657,3]
[386577061,1758406250262,-410.28,0.00024657,3]
[386577063,1758406250273,-739.27,0.00024657,3]
[386577065,1758406250282,-739.27,0.00024657,3]
[386577067,1758406250291,-530.59,0.00024657,3]
[386577069,1758406250300,-277.64589631,0.00024657,3]
[386577071,1758406250309,-400.0,0.00024657,3]
[386577073,1758406250320,-739.27,0.00024657,3]
[386577075,1758406250329,-739.27,0.00024657,3]
[386577077,1758406250338,-739.27,0.00024657,3]
[386577079,1758406250347,-1143.62,0.00024657,3]
[386577081,1758406250356,-739.27,0.00024657,3]
[386577083,1758406250365,-2092.71,0.00024657,3]
[386577085,1758406250375,-400.0,0.00024657,3]
[386577087,1758406250384,-400.0,0.00024657,3]
[386577089,1758406250393,-400.0,0.00024657,3]
[386577091,1758406250404,-400.0,0.00024657,3]
[386577093,1758406250413,-400.0,0.00024657,3]
[386577095,1758406250422,-400.0,0.00024657,3]
[386577097,1758406250431,-400.0,0.00024657,3]
[386577099,1758406250440,-400.0,0.00024657,3]
[386577101,1758406250450,-400.0,0.00024657,3]
[386577103,1758406250459,-739.27,0.00024657,3]
[386577105,1758406250468,-739.27,0.00024657,3]
[386577107,1758406250477,-739.27,0.00024657,3]
[386577109,1758406250486,-739.44763096,0.00024657,3]
[386577111,1758406250495,-400.0,0.00024657,3]
[386577113,1758406250504,-636.18,0.00024657,3]
[386577115,1758406250514,-400.0,0.00024657,3]
[386577117,1758406250524,-647.97,0.00024657,3]
[386577119,1758406250533,-400.0,0.00024657,3]
[386577121,1758406250542,-400.0,0.00024657,3]
[386577123,1758406250551,-400.0,0.00024657,3]
[386577125,1758406250560,-673.15,0.00024657,3]
[386577127,1758406250570,-673.15,0.00024657,3]
[386577129,1758406250579,-673.15,0.00024657,3]
[386577131,1758406250589,-400.0,0.00024657,3]
[386577133,1758406250598,-673.15,0.00024657,3]
[386577135,1758406250608,-673.15,0.00024657,3]
[386577137,1758406250617,-400.0,0.00024657,3]
[386577139,1758406250626,-673.15,0.00024657,3]
[386577141,1758406250636,-400.0,0.00024657,3]
[386577143,1758406250646,-673.15,0.00024657,3]
[386577145,1758406250655,-673.15,0.00024657,3]
[386577147,1758406250664,-673.15,0.00024657,3]
[386577149,1758406250674,-1183.44,0.00024657,3]
[386577151,1758406250683,-400.0,0.00024657,3]
[386577153,1758406250692,-400.0,0.00024657,3]
[386577155,1758406250701,-400.0,0.00024657,3]
[386577157,1758406250712,-411.0,0.00024657,3]
[386577159,1758406250721,-1157.82,0.00024657,3]
[386577161,1758406250731,-486.5,0.00024657,3]
[386577163,1758406250741,-400.0,0.00024657,3]
[386577166,1758406250751,-1242.05,0.00024657,3]
[386577167,1758406250762,-3875.92,0.00024657,3]
[386577169,1758406250771,-400.0,0.00024657,3]
[386577171,1758406250780,-1142.94,0.00024657,3]
[386577173,1758406250790,-400.0,0.00024657,3]
[386577175,1758406250799,-484.09,0.00024657,3]
[386577177,1758406250808,-400.0,0.00024657,3]
[386577180,1758406250818,-400.0,0.00024657,3]
[386577182,1758406250828,-1071.15,0.00024657,3]
[386577183,1758406250838,-673.15,0.00024657,3]
[386577185,1758406250847,-400.0,0.00024657,3]
[386577187,1758406250858,-1069.31,0.00024657,3]
[386577189,1758406250867,-673.15,0.00024657,3]
[386577191,1758406250876,-673.15,0.00024657,3]
[386577193,1758406250886,-673.15,0.00024657,3]
[386577195,1758406250895,-673.15,0.00024657,3]
[386577197,1758406250904,-468.67,0.00024657,3]
[386577199,1758406250913,-673.15,0.00024657,3]
[386577201,1758406250922,-400.0,0.00024657,3]
[386577203,1758406250932,-400.0,0.00024657,3]
[386577205,1758406250941,-400.0,0.00024657,3]
[386577207,1758406250950,-400.0,0.00024657,3]
[386577210,1758406250959,-400.0,0.00024657,3]
[386577211,1758406250969,-2456.6,0.00024657,3]
[386577214,1758406250978,-151.0,0.00024657,7]
[386577215,1758406250987,-151.0,0.00024657,7]
[386577218,1758406250996,-151.0,0.00024657,7]
[386577219,1758406251006,-151.0,0.00024657,7]
[386577222,1758406251015,-2156.85,0.00024657,3]
[386577224,1758406251024,-1023.73,0.00024657,3]
[386577226,1758406251034,-1094.94,0.00024657,3]
[386577228,1758406251044,-151.0,0.00024657,7]
[386577229,1758406251054,-151.0,0.00024657,7]
[386577232,1758406251064,-400.0,0.00024657,3]
[386577233,1758406251079,-211.765246,0.00024657,7]
[386577235,1758406251090,-438.54578034,0.00024657,3]
[386577237,1758406251099,-431.43,0.00024657,3]
[386577239,1758406251108,-400.0,0.00024657,3]
[386577241,1758406251119,-400.0,0.00024657,3]
[386577244,1758406251128,-400.0,0.00024657,3]
[386577245,1758406251137,-1108.41,0.00024657,3]
[386577248,1758406251146,-400.0,0.00024657,3]
[386577250,1758406251156,-402.58586695,0.00024657,3]
[386577252,1758406251165,-400.0,0.00024657,3]
[386577254,1758406251174,-400.0,0.00024657,3]
[386577256,1758406251183,-400.0,0.00024657,3]
[386577258,1758406251192,-400.0,0.00024657,3]
[386577260,1758406251201,-400.0,0.00024657,3]
[386577262,1758406251210,-1119.37,0.00024657,3]
[386577264,1758406251220,-673.15,0.00024657,3]
[386577266,1758406251229,-400.0,0.00024657,3]
[386577268,1758406251238,-673.15,0.00024657,3]
[386577270,1758406251247,-673.15,0.00024657,3]
[386577272,1758406251256,-400.0,0.00024657,3]
[386577274,1758406251265,-400.0,0.00024657,3]